fUSD/lending_fUSD_20260127
["ID","MTS","AMOUNT","RATE_DAILY","PERIOD"]
[403702613,1769493050729,-4826.3680823,0.000328,2]
[403702614,1769493050739,-1782.5,0.00032849,120]
[403702615,1769493050750,-1625.5,0.00032849,120]
[403702616,1769493050760,-1135.5,0.00032849,120]
[403702617,1769493050769,-1844.5,0.00032849,120]
[403702618,1769493050778,-1716.39798045,0.0003287,4]
[403702619,1769493050788,-600.0,0.00032876,2]
[403702620,1769493050799,-600.0,0.00032876,2]
[403702621,1769493050808,-533.97061735,0.00032876,2]
[403702622,1769493050817,-500.0,0.00032876,30]
[403702623,1769493050826,-500.0,0.00032876,30]
[403702624,1769493050835,-500.0,0.00032876,30]
[403702625,1769493050847,-500.0,0.00032876,30]
[403702626,1769493050856,-500.0,0.00032876,30]
[403702627,1769493050867,-500.0,0.00032876,30]
[403702628,1769493050876,-500.0,0.00032876,30]
[403702629,1769493050886,-500.0,0.00032876,30]
[403702630,1769493050896,-500.0,0.00032876,30]
[403702631,1769493050906,-500.0,0.00032876,30]
[403702632,1769493050915,-500.0,0.00032876,30]
[403702633,1769493050925,-500.0,0.00032876,30]
[403702634,1769493050934,-500.0,0.00032876,30]
[403702635,1769493050943,-518.97539219,0.00032876,30]
[403702636,1769493050952,-1225.03,0.00032877,2]
[403702637,1769493050961,-176.29315304,0.00032877,2]
[403702638,1769493050972,-300.0,0.00032877,5]
[403702639,1769493050981,-500.0,0.00032877,2]
[403702640,1769493050993,-500.0,0.00032877,2]
[403702641,1769493051003,-500.0,0.00032877,2]
[403702642,1769493051012,-500.0,0.00032877,2]
[403702643,1769493051022,-500.0,0.00032877,2]
[403702644,1769493051032,-353.29077986,0.00032877,2]
[403702645,1769493051043,-500.0,0.00032877,5]
[403702646,1769493051053,-500.0,0.00032877,7]
[403702647,1769493051062,-500.0,0.00032877,7]
[403702648,1769493051073,-500.0,0.00032877,7]
[403702649,1769493051082,-500.0,0.00032877,7]
[403702650,1769493051093,-372.08668961,0.00032877,7]
[403702651,1769493051102,-500.0,0.00032877,7]
[403702652,1769493051112,-500.0,0.00032877,7]
[403702653,1769493051122,-500.0,0.00032877,7]
[403702654,1769493051131,-500.0,0.00032877,7]
[403702655,1769493051141,-621.0,0.00032877,2]
[403702656,1769493051151,-3536.01,0.000329,14]
[403702657,1769493051164,-2132.99,0.000329,14]
[403702658,1769493051173,-5046.42,0.000329,2]
[403702659,1769493051182,-621.0,0.00032932,2]
[403702660,1769493051192,-621.0,0.00032987,2]
[403702661,1769493051202,-51262.95011976,0.00033,2]
[403702662,1769493051211,-26360.49650178,0.00033,2]
[403702663,1769493051221,-4000.97046774,0.00033,13]
[403702664,1769493051230,-153.42513426,0.00033,2]
[403702665,1769493051240,-621.0,0.00033041,2]
[403702666,1769493051250,-150.00182742,0.0003309,49]
[403702667,1769493051259,-621.0,0.00033096,2]
[403702668,1769493051268,-6198.23,0.000331,14]
[403702669,1769493051277,-621.0,0.00033151,2]
[403702670,1769493051286,-621.0,0.00033206,2]
[403702671,1769493051295,-282.0,0.00033226,30]
[403702672,1769493051305,-152.0,0.00033226,30]
[403702673,1769493051315,-162.0,0.00033226,30]
[403702674,1769493051324,-3183.68744233,0.00033233,2]
[403702675,1769493051335,-3264.03991666,0.00033233,2]
[403702676,1769493051344,-621.0,0.00033261,2]
[403702677,1769493051353,-431.42848765,0.00033276,2]
[403702678,1769493051362,-3543.0,0.0003328,2]
[403702679,1769493051371,-668.65185757,0.0003328,2]
[403702680,1769493051381,-804.17102365,0.0003328,2]
[403702681,1769493051390,-621.0,0.00033315,2]
[403702682,1769493051400,-621.0,0.0003337,2]
[403702683,1769493051409,-1075.94332682,0.00033392,2]
[403702684,1769493051418,-1000.0,0.00033392,2]
[403702685,1769493051428,-1000.0,0.00033392,2]
[403702686,1769493051438,-1924.05667318,0.00033392,2]
[403702687,1769493051448,-191.6,0.000334,8]
[403702688,1769493051458,-621.0,0.00033425,2]
[403702689,1769493051468,-1000.0,0.0003345,2]
[403702690,1769493051478,-1000.0,0.0003345,2]
[403702691,1769493051488,-1000.0,0.0003345,2]
[403702692,1769493051499,-1000.0,0.0003345,2]
[403702693,1769493051508,-1000.0,0.0003345,2]
[403702694,1769493051518,-621.0,0.0003348,2]
[403702695,1769493051528,-1210.43314498,0.000335,2]
[403702696,1769493051538,-621.0,0.00033535,2]
[403702697,1769493051548,-621.0,0.00033589,2]
[403702698,1769493051558,-4551.14,0.000336,2]
[403702699,1769493051568,-2008.0,0.000336,7]
[403702700,1769493051578,-621.0,0.00033644,2]
[403702701,1769493051588,-600.0,0.00033699,5]
[403702702,1769493051599,-621.0,0.00033699,2]
[403702703,1769493051609,-621.0,0.00033754,2]
[403702704,1769493051619,-621.0,0.00033809,2]
[403702705,1769493051628,-621.0,0.00033863,2]
[403702706,1769493051638,-5046.42,0.000339,2]
[403702707,1769493051648,-621.0,0.00033918,2]
[403702708,1769493051659,-621.0,0.00033973,2]
[403702709,1769493051669,-1408.0,0.00033981,2]
[403702710,1769493051679,-3477.0,0.00033981,2]
[403702711,1769493051689,-1333.0,0.00033981,2]
[403702712,1769493051699,-615.0,0.00033981,2]
[403702713,1769493051710,-184.0,0.00033981,2]
[403702714,1769493051719,-1269.0,0.00033981,2]
[403702715,1769493051729,-916.0,0.00033981,2]
[403702716,1769493051740,-1204.0,0.00033981,2]
[403702717,1769493051751,-567.0,0.00033981,2]
[403702718,1769493051761,-2442.0,0.00033981,2]
[403702719,1769493051770,-4831.0,0.00033981,2]
[403702720,1769493051781,-178.87125275,0.00034,30]
[403702721,1769493051790,-3526.34697927,0.00034,7]
[403702722,1769493051800,-1913.53038351,0.00034,2]
[403702723,1769493051809,-1000.0,0.00034,30]
[403702724,1769493051820,-621.0,0.00034028,2]
[403702725,1769493051829,-621.0,0.00034082,2]
[403702726,1769493051839,-2000.0,0.000341,2]
[403702727,1769493051848,-632.0,0.00034137,2]
[403702728,1769493051857,-768.37,0.00034319,30]
[403702729,1769493051867,-164.30746389,0.00034465,53]
[403702730,1769493051876,-1729.48950562,0.0003449,2]
[403702731,1769493051886,-6198.23,0.000345,14]
[403702732,1769493051895,-160.01988213,0.000345,2]
[403702733,1769493051904,-5000.0,0.000345,14]
[403702734,1769493051914,-150.0,0.00034521,2]
[403702735,1769493051924,-900.0,0.00034521,5]
[403702736,1769493051933,-447.3913417,0.00034645,2]
[403702737,1769493051944,-11147.84383366,0.000348,30]
[403702738,1769493051954,-5046.42,0.000348,2]
[403702739,1769493051963,-302.1,0.00034842,2]
[403702740,1769493051973,-528.94139888,0.00034849,120]
[403702741,1769493051983,-396.3916255,0.0003488,120]
[403702742,1769493051992,-3841.64291801,0.000349,24]
[403702743,1769493052003,-284.4159376,0.0003491,2]
[403702744,1769493052014,-800.0,0.00034992,14]
[403702745,1769493052023,-1300.0,0.00034992,14]
[403702746,1769493052032,-198.19562386,0.00035,3]
[403702747,1769493052041,-1915.4764815,0.00035,2]
[403702748,1769493052051,-2000.0,0.00035,30]
[403702749,1769493052060,-1022.0,0.00035,30]
[403702750,1769493052069,-151.0,0.00035,31]
[403702751,1769493052176,-151.0,0.00035,31]
[403702752,1769493052185,-151.0,0.00035,31]
[403702753,1769493052195,-202.688092,0.00035,31]
[403702754,1769493052206,-100000.0,0.00035,6]
[403702755,1769493052215,-21076.17112037,0.00035,6]
[403702756,1769493052225,-200.0,0.00035139,4]
[403702757,1769493052234,-600.0,0.00035266,14]
[403702758,1769493052243,-2500.0,0.000353,14]
[403702759,1769493052252,-1000.0,0.00035342,7]
[403702760,1769493052261,-509.15344353,0.00035342,2]
[403702761,1769493052270,-1200.0,0.00035342,5]
[403702762,1769493052279,-282.0,0.00035441,30]
[403702763,1769493052288,-5046.42,0.000355,2]
[403702764,1769493052296,-200.0,0.000355,2]
[403702765,1769493052306,-3183.68744233,0.0003551,2]
[403702766,1769493052315,-3264.03991666,0.0003551,2]
[403702767,1769493052324,-150.0,0.00035583,30]
[403702768,1769493052334,-150.0,0.00035583,2]
[403702769,1769493052343,-167.45779973,0.00035589,120]
[403702770,1769493052352,-1874.6,0.00035589,120]
[403702771,1769493052361,-3122.7,0.00035589,120]
[403702772,1769493052370,-462.13393633,0.00035589,120]
[403702773,1769493052379,-198.05740128,0.00035589,120]
[403702774,1769493052388,-387.80212727,0.000356,30]
[403702775,1769493052397,-300.0,0.00035609,10]
[403702776,1769493052406,-300.0,0.00035609,10]
[403702777,1769493052415,-157661.07275707,0.0003561,2]
[403702778,1769493052424,-151.0,0.0003561,31]
[403702779,1769493052433,-151.0,0.0003561,31]
[403702780,1769493052443,-151.0,0.0003561,30]
[403702781,1769493052452,-151.0,0.0003561,30]
[403702782,1769493052461,-151.0,0.0003561,31]
[403702783,1769493052470,-151.0,0.0003561,31]
[403702784,1769493052479,-151.0,0.0003561,31]
[403702785,1769493052488,-151.0,0.0003561,31]
[403702786,1769493052497,-521.96981,0.0003561,31]
[403702787,1769493052507,-521.96981,0.0003561,31]
[403702788,1769493052515,-521.96981,0.0003561,31]
[403702789,1769493052524,-521.96981,0.0003561,31]
[403702790,1769493052533,-300.0,0.00035615,10]
[403702791,1769493052542,-300.0,0.00035615,10]
[403702792,1769493052551,-1999.0,0.00035616,120]
[403702793,1769493052560,-1000.0,0.00035616,7]
[403702794,1769493052569,-500.0,0.00035616,7]
[403702795,1769493052578,-500.0,0.00035616,7]
[403702796,1769493052587,-500.0,0.00035616,7]
[403702797,1769493052596,-500.0,0.00035616,7]
[403702798,1769493052606,-274.09283959,0.00035616,7]
[403702799,1769493052615,-500.0,0.00035616,7]
[403702800,1769493052624,-263.19181748,0.00035616,7]
[403702801,1769493052633,-1225.03,0.00035616,2]
[403702802,1769493052642,-600.0,0.00035616,2]
[403702803,1769493052651,-200.0,0.00035617,5]
[403702804,1769493052660,-1000.0,0.00035634,7]
[403702805,1769493052668,-150.0,0.00035638,30]
[403702806,1769493052678,-150.0,0.00035693,30]
[403702807,1769493052687,-1000.0,0.00035746,7]
[403702808,1769493052696,-200.0,0.00035747,30]
[403702809,1769493052707,-1000.0,0.00035794,7]
[403702810,1769493052716,-300.0,0.00035799,10]
[403702811,1769493052726,-1000.0,0.000358,30]
[403702812,1769493052736,-2008.0,0.000358,7]
[403702813,1769493052747,-218.81941682,0.00035803,2]
[403702814,1769493052757,-300.0,0.00035813,10]
[403702815,1769493052768,-800.0,0.00035814,14]
[403702816,1769493052778,-1300.0,0.00035814,14]
[403702817,1769493052787,-164.30746389,0.00035841,56]
[403702818,1769493052797,-157.36498,0.00035888,30]
[403702819,1769493052806,-1000.0,0.0003589,14]
[403702820,1769493052815,-300.0,0.00035899,10]
[403702821,1769493052824,-3536.01,0.000359,14]
[403702822,1769493052833,-2132.99,0.000359,14]
[403702823,1769493052842,-150.0,0.00035938,7]
[403702824,1769493052851,-200.0,0.0003594,4]
[403702825,1769493052860,-1000.0,0.00035982,7]
[403702826,1769493052869,-1000.0,0.00035984,7]
[403702827,1769493052878,-1000.0,0.00035996,7]
[403702828,1769493052887,-300.0,0.00035999,10]
[403702829,1769493052896,-300.0,0.00035999,10]
[403702830,1769493052905,-276.76711978,0.00035999,30]
[403702831,1769493052914,-300.0,0.00035999,10]
[403702832,1769493052923,-522.73,0.00036,30]
[403702833,1769493052932,-162202.89737694,0.00036,10]
[403702834,1769493052941,-234360.30745378,0.00036,2]
[403702835,1769493052950,-10844.14795027,0.00036,2]
[403702836,1769493052959,-2038.0,0.00036,30]
[403702837,1769493052968,-150.0,0.00036006,7]
[403702838,1769493052977,-463.94482134,0.00036014,2]
[403702839,1769493052986,-300.0,0.00036017,10]
[403702840,1769493052995,-300.0,0.00036017,10]
[403702841,1769493053004,-5000.0,0.00036018,10]
[403702842,1769493053014,-1000.0,0.00036019,7]
[403702843,1769493053023,-3543.0,0.00036019,2]
[403702844,1769493053032,-310.32929809,0.00036019,2]
[403702845,1769493053041,-833.92535153,0.00036019,2]
[403702846,1769493053051,-1000.0,0.00036034,7]
[403702847,1769493053061,-300.0,0.00036036,10]
[403702848,1769493053070,-300.0,0.00036036,10]
[403702849,1769493053080,-5000.0,0.00036037,10]
[403702850,1769493053089,-3543.89,0.00036037,10]
[403702851,1769493053098,-150.0,0.00036044,7]
[403702852,1769493053107,-150.0,0.00036054,7]
[403702853,1769493053116,-300.0,0.00036057,10]
[403702854,1769493053126,-300.0,0.00036057,10]
[403702855,1769493053135,-25000.0,0.00036058,10]
[403702856,1769493053144,-2043.5822,0.00036058,120]
[403702857,1769493053153,-1000.0,0.00036059,7]
[403702858,1769493053165,-629.89651824,0.00036084,7]
[403702859,1769493053177,-157.36498,0.00036088,30]
[403702860,1769493053186,-600.0,0.00036088,14]
[403702861,1769493053196,-1000.0,0.00036096,7]
[403702862,1769493053207,-300.0,0.00036099,10]
[403702863,1769493053217,-307.77367355,0.00036099,10]
[403702864,1769493053227,-6198.23,0.000361,14]
[403702865,1769493053238,-300.0,0.00036106,10]
[403702866,1769493053247,-5000.0,0.00036107,10]
[403702867,1769493053256,-300.0,0.00036112,10]
[403702868,1769493053265,-5000.0,0.00036113,10]
[403702869,1769493053274,-150.0,0.00036114,7]
[403702870,1769493053283,-200.0,0.00036139,5]
[403702871,1769493053293,-300.0,0.00036142,10]
[403702872,1769493053302,-3353.5078284,0.00036143,2]
[403702873,1769493053311,-2399.141674,0.00036152,15]
[403702874,1769493053321,-200.0,0.00036155,7]
[403702875,1769493053330,-1000.0,0.00036158,7]
[403702876,1769493053339,-1000.0,0.00036164,14]
[403702877,1769493053348,-1500.0,0.00036164,5]
[403702878,1769493053357,-600.0,0.00036164,2]
[403702879,1769493053367,-250.70653005,0.00036167,14]
[403702880,1769493053376,-150.0,0.00036169,7]
[403702881,1769493053385,-25000.0,0.0003617,10]
[403702882,1769493053394,-258.330728,0.0003617,31]
[403702883,1769493053403,-258.330728,0.0003617,31]
[403702884,1769493053412,-258.330728,0.0003617,31]
[403702885,1769493053421,-258.330728,0.0003617,31]
[403702886,1769493053429,-151.0,0.0003617,31]
[403702887,1769493053437,-201.756977,0.0003617,31]
[403702888,1769493053445,-2002.950959,0.0003617,31]
[403702889,1769493053453,-2002.950959,0.0003617,31]
[403702890,1769493053461,-2002.950959,0.0003617,31]
[403702891,1769493053470,-2002.950959,0.0003617,31]
[403702892,1769493053479,-151.0,0.0003617,31]
[403702893,1769493053488,-151.0,0.0003617,31]
[403702894,1769493053496,-3282.141236,0.0003617,28]
[403702895,1769493053505,-3282.141236,0.0003617,28]
[403702896,1769493053514,-3282.141236,0.0003617,28]
[403702897,1769493053523,-3282.141236,0.0003617,28]
[403702898,1769493053532,-229.204511,0.0003617,31]
[403702899,1769493053542,-229.204511,0.0003617,31]
[403702900,1769493053551,-229.204511,0.0003617,31]
[403702901,1769493053560,-229.204511,0.0003617,31]
[403702902,1769493053569,-151.0,0.0003617,31]
[403702903,1769493053578,-151.0,0.0003617,31]
[403702904,1769493053587,-377.536402,0.0003617,31]
[403702905,1769493053596,-377.536402,0.0003617,31]
[403702906,1769493053606,-377.536402,0.0003617,31]
[403702907,1769493053615,-377.536402,0.0003617,31]
[403702908,1769493053624,-151.0,0.0003617,31]
[403702909,1769493053633,-151.0,0.0003617,31]
[403702910,1769493053642,-2806.026141,0.0003617,31]
[403702911,1769493053651,-2806.026141,0.0003617,31]
[403702912,1769493053660,-2806.026141,0.0003617,31]
[403702913,1769493053669,-2806.026141,0.0003617,31]
[403702914,1769493053678,-151.0,0.0003617,31]
[403702915,1769493053687,-267.670865,0.0003617,31]
[403702916,1769493053696,-267.670865,0.0003617,31]
[403702917,1769493053705,-267.670865,0.0003617,31]
[403702918,1769493053714,-267.670865,0.0003617,31]
[403702919,1769493053723,-150.0,0.00036175,7]
[403702920,1769493053732,-196.40545332,0.00036179,7]
[403702921,1769493053742,-1000.0,0.00036203,7]
[403702922,1769493053751,-4925.63,0.0003622,10]
[403702923,1769493053760,-157.756282,0.0003622,31]
[403702924,1769493053769,-157.756282,0.0003622,31]
[403702925,1769493053778,-157.756282,0.0003622,31]
[403702926,1769493053788,-348.619521,0.0003622,31]
[403702927,1769493053797,-348.619521,0.0003622,31]
[403702928,1769493053808,-157.756282,0.0003622,31]
[403702929,1769493053817,-348.619521,0.0003622,31]
[403702930,1769493053826,-348.619521,0.0003622,31]
[403702931,1769493053836,-486.92329,0.0003622,31]
[403702932,1769493053845,-486.92329,0.0003622,31]
[403702933,1769493053855,-486.92329,0.0003622,31]
[403702934,1769493053864,-486.92329,0.0003622,31]
[403702935,1769493053882,-219.157138,0.0003622,31]
[403702936,1769493053893,-193.400251,0.0003622,31]
[403702937,1769493053902,-219.157138,0.0003622,31]
[403702938,1769493053911,-193.400251,0.0003622,31]
[403702939,1769493053921,-219.157138,0.0003622,31]
[403702940,1769493053930,-193.400251,0.0003622,31]
[403702941,1769493053939,-219.157138,0.0003622,31]
[403702942,1769493053949,-193.400251,0.0003622,31]
[403702943,1769493053958,-151.0,0.0003622,31]
[403702944,1769493053967,-151.0,0.0003622,31]
[403702945,1769493053976,-151.0,0.0003622,31]
[403702946,1769493053986,-377.481177,0.0003622,31]
[403702947,1769493053995,-377.481177,0.0003622,31]
[403702948,1769493054005,-377.481177,0.0003622,31]
[403702949,1769493054014,-377.481177,0.0003622,31]
[403702950,1769493054024,-222.0147,0.0003622,31]
[403702951,1769493054033,-1000.0,0.00036225,7]
[403702952,1769493054043,-2500.0,0.00036282,10]
[403702953,1769493054053,-1000.0,0.00036286,7]
[403702954,1769493054062,-157.36498,0.00036288,30]
[403702955,1769493054072,-5000.0,0.00036295,10]
[403702956,1769493054081,-151.0,0.00036295,31]
[403702957,1769493054091,-151.0,0.00036295,30]
[403702958,1769493054100,-151.0,0.00036295,31]
[403702959,1769493054109,-151.0,0.00036295,31]
[403702960,1769493054119,-151.0,0.00036295,31]
[403702961,1769493054129,-151.0,0.00036295,31]
[403702962,1769493054139,-151.0,0.00036295,31]
[403702963,1769493054148,-800.749989,0.00036295,7]
[403702964,1769493054160,-800.749989,0.00036295,7]
[403702965,1769493054178,-800.749989,0.00036295,7]
[403702966,1769493054189,-800.749989,0.00036295,7]
[403702967,1769493054198,-1631.97,0.000363,30]
[403702968,1769493054208,-150.0,0.00036311,7]
[403702969,1769493054217,-150.0,0.00036318,7]
[403702970,1769493054227,-5000.0,0.00036337,10]
[403702971,1769493054237,-5000.0,0.00036372,10]
[403702972,1769493054247,-1000.0,0.00036401,7]
[403702973,1769493054256,-1000.0,0.00036438,14]
[403702974,1769493054266,-25000.0,0.0003647,10]
[403702975,1769493054276,-151.0,0.0003647,31]
[403702976,1769493054285,-151.0,0.0003647,31]
[403702977,1769493054295,-151.0,0.0003647,31]
[403702978,1769493054305,-226.698597,0.0003647,31]
[403702979,1769493054315,-226.698597,0.0003647,31]
[403702980,1769493054325,-226.698597,0.0003647,31]
[403702981,1769493054335,-226.698597,0.0003647,31]
[403702982,1769493054344,-2571.34,0.0003648,10]
[403702983,1769493054354,-150.0,0.0003648,7]
[403702984,1769493054364,-157.36498,0.00036488,30]
[403702985,1769493054374,-1145.46,0.00036491,10]
[403702986,1769493054383,-1000.0,0.00036502,7]
[403702987,1769493054393,-1000.0,0.00036531,7]
[403702988,1769493054403,-2000.0,0.0003654,79]
[403702989,1769493054413,-2000.0,0.0003654,79]
[403702990,1769493054422,-2000.0,0.0003654,79]
[403702991,1769493054436,-2000.0,0.0003654,79]
[403702992,1769493054447,-8110.41270033,0.00036541,2]
[403702993,1769493054458,-150.0,0.00036549,30]
[403702994,1769493054470,-162.0,0.00036549,30]
[403702995,1769493054481,-725.9870024,0.00036592,7]
[403702996,1769493054492,-1683.07,0.00036596,10]
[403702997,1769493054504,-5000.0,0.00036596,10]
[403702998,1769493054515,-25000.0,0.00036597,10]
[403702999,1769493054526,-154.380053,0.00036597,31]
[403703000,1769493054536,-4023.51,0.000366,10]
[403703001,1769493054546,-25000.0,0.00036602,10]
[403703002,1769493054556,-5000.0,0.00036608,10]
[403703003,1769493054566,-200.0,0.00036614,10]
[403703004,1769493054576,-5000.0,0.00036623,10]
[403703005,1769493054586,-1000.0,0.00036626,7]
[403703006,1769493054595,-186.60148221,0.00036626,7]
[403703007,1769493054605,-5000.0,0.00036628,10]
[403703008,1769493054615,-150.0,0.00036634,7]
[403703009,1769493054625,-800.0,0.00036636,14]
[403703010,1769493054635,-1300.0,0.00036636,14]
[403703011,1769493054644,-5000.0,0.00036637,10]
[403703012,1769493054654,-384.0,0.0003665,2]
[403703013,1769493054664,-1000.0,0.00036651,7]
[403703014,1769493054674,-150.0,0.00036665,7]
[403703015,1769493054684,-1000.0,0.00036671,7]
[403703016,1769493054695,-1000.0,0.00036679,7]
[403703017,1769493054704,-5000.0,0.00036681,10]
[403703018,1769493054714,-157.36498,0.00036688,30]
[403703019,1769493054724,-1528.62,0.00036692,10]
[403703020,1769493054734,-384.0,0.00036704,2]
[403703021,1769493054744,-152.0,0.00036712,120]
[403703022,1769493054753,-152.0,0.00036712,120]
[403703023,1769493054763,-151.0,0.00036712,120]
[403703024,1769493054774,-151.0,0.00036712,120]
[403703025,1769493054784,-152.0,0.00036712,120]
[403703026,1769493054796,-152.0,0.00036712,120]
[403703027,1769493054811,-152.0,0.00036712,120]
[403703028,1769493054822,-152.0,0.00036712,120]
[403703029,1769493054832,-152.0,0.00036712,120]
[403703030,1769493054844,-152.0,0.00036712,120]
[403703031,1769493054857,-152.0,0.00036712,120]
[403703032,1769493054868,-152.0,0.00036712,120]
[403703033,1769493054878,-152.0,0.00036712,120]
[403703034,1769493054890,-152.0,0.00036712,120]
[403703035,1769493054900,-152.0,0.00036712,120]
[403703036,1769493054911,-152.0,0.00036712,120]
[403703037,1769493054922,-152.0,0.00036712,120]
[403703038,1769493054933,-152.0,0.00036712,120]
[403703039,1769493054944,-152.0,0.00036712,120]
[403703040,1769493054954,-152.0,0.00036712,120]
[403703041,1769493054964,-152.0,0.00036712,120]
[403703042,1769493054974,-152.0,0.00036712,120]
[403703043,1769493054984,-152.0,0.00036712,120]
[403703044,1769493054994,-152.0,0.00036712,120]
[403703045,1769493055004,-315.67430065,0.00036712,120]
[403703046,1769493055015,-1000.0,0.00036712,14]
[403703047,1769493055026,-600.0,0.00036712,2]
[403703048,1769493055036,-384.0,0.0003672,2]
[403703049,1769493055047,-522.73,0.0003672,30]
[403703050,1769493055057,-2000.0,0.00036725,3]
[403703051,1769493055068,-2000.0,0.00036725,3]
[403703052,1769493055078,-381.0,0.00036733,2]
[403703053,1769493055088,-150.0,0.0003674,7]
[403703054,1769493055098,-155.3073735,0.00036747,7]
[403703055,1769493055108,-1000.0,0.00036761,7]
[403703056,1769493055118,-5000.0,0.00036775,10]
[403703057,1769493055128,-1000.0,0.00036776,7]
[403703058,1769493055139,-5000.0,0.0003678,10]
[403703059,1769493055149,-2531.02,0.00036789,10]
[403703060,1769493055161,-1000.0,0.0003679,7]
[403703061,1769493055171,-1000.0,0.0003679,7]
[403703062,1769493055181,-151.82160269,0.00036797,60]
[403703063,1769493055195,-170.33,0.000368,30]
[403703064,1769493055207,-3536.01,0.000368,14]
[403703065,1769493055217,-2132.99,0.000368,14]
[403703066,1769493055227,-5046.42,0.000368,2]
[403703067,1769493055239,-1609.03869746,0.000368,2]
[403703068,1769493055249,-1952.97632278,0.000368,2]
[403703069,1769493055261,-2000.0,0.000368,120]
[403703070,1769493055271,-1328.038,0.000368,120]
[403703071,1769493055281,-1000.0,0.00036814,7]
[403703072,1769493055292,-2504.3,0.00036822,10]
[403703073,1769493055304,-5000.0,0.00036832,10]
[403703074,1769493055316,-206.48743083,0.00036832,10]
[403703075,1769493055328,-382.0,0.00036837,2]
[403703076,1769493055339,-5000.0,0.00036846,10]
[403703077,1769493055352,-150.0,0.00036866,7]
[403703078,1769493055363,-2504.3,0.0003687,10]
[403703079,1769493055374,-500.0,0.0003687,2]
[403703080,1769493055384,-1000.0,0.0003687,2]
[403703081,1769493055396,-524.5499,0.00036888,7]
[403703082,1769493055409,-157.36498,0.00036888,30]
[403703083,1769493055420,-354.67573324,0.00036888,7]
[403703084,1769493055431,-379.0,0.00036893,2]
[403703085,1769493055442,-1000.0,0.00036897,7]
[403703086,1769493055452,-239.7,0.000369,2]
[403703087,1769493055462,-150.0,0.000369,15]
[403703088,1769493055472,-187.88,0.000369,35]
[403703089,1769493055483,-200.0,0.00036901,7]
[403703090,1769493055495,-3489.21218084,0.0003691,2]
[403703091,1769493055505,-600.0,0.0003691,14]
[403703092,1769493055515,-2000.0,0.0003691,84]
[403703093,1769493055525,-2000.0,0.0003691,84]
[403703094,1769493055535,-384.2349254,0.00036913,2]
[403703095,1769493055545,-25000.0,0.00036923,10]
[403703096,1769493055555,-14904.56,0.00036923,10]
[403703097,1769493055568,-5000.0,0.00036927,10]
[403703098,1769493055578,-5000.0,0.00036927,10]
[403703099,1769493055589,-2531.03,0.0003694,10]
[403703100,1769493055599,-5000.0,0.00036945,10]
[403703101,1769493055609,-200.0,0.00036953,5]
[403703102,1769493055619,-5000.0,0.00036956,10]
[403703103,1769493055629,-5000.0,0.00036966,10]
[403703104,1769493055641,-5000.0,0.00036967,10]
[403703105,1769493055653,-25000.0,0.0003698,10]
[403703106,1769493055664,-1408.0,0.00036981,2]
[403703107,1769493055676,-3477.0,0.00036981,2]
[403703108,1769493055686,-1333.0,0.00036981,2]
[403703109,1769493055697,-615.0,0.00036981,2]
[403703110,1769493055709,-184.0,0.00036981,2]
[403703111,1769493055720,-1269.0,0.00036981,2]
[403703112,1769493055731,-916.0,0.00036981,2]